Workbook

Sheet Sheet1
H1: Stock Expectations Yearly | J1: Volatility Costants
D2: Simulations | E2: Periods | F2: Stock Price | G2: Strike | H2: Volatility | I2: Drift | J2: Constan Theta | K2: Constant K | L2: Daily Free Int. Rate
D3: 10 | E3: 3 | F3: 100 | G3: 110 | H3: 0.3 | I3: 0.1 | J3: 0.001 | K3: 0.001 | L3: 0.05
B4: Fair Price | H4: Stock Expectations Daily | J4: Day one
B5: 6.162403096 | H5: Ini. Volatility | I5: Ini. Drift | J5: Exp. Daily Drift
H6: =H3/SQRT(252) -> 0.01889822365 | I6: =I3/252 -> 0.0003968253968 | J6: =I6-0.5*H6^2 -> 0.0002182539683
L8: Nods Per Simulation
D9: Simulation | E9: N(0,1) Vol | F9: N(0,1) Price | G9: Volatility | H9: Log Return | I9: Stock Price | J9: Payoff | L9: 1 | M9: =L9+1 -> 2 | N9: =M9+1 -> 3 | O9: =N9+1 -> 4 | P9: 5 | Q9: 6 | R9: 7 | S9: 8 | T9: 9 | U9: 10 | V9: 11 | W9: 12 | X9: 13 | Y9: 14 | Z9: 15 | AA9: 16 | AB9: 17 | AC9: 18 | AD9: 19 | AE9: 20 | AF9: 21 | AG9: 22 | AH9: 23 | AI9: 24 | AJ9: 25 | AK9: 26 | AL9: 27 | AM9: 28 | AN9: 29 | AO9: 30 | AP9: 31 | AQ9: 32 | AR9: 33 | AS9: 34 | AT9: 35 | AU9: 36 | AV9: 37 | AW9: 38 | AX9: 39 | AY9: 40 | AZ9: 41 | BA9: 42 | BB9: 43 | BC9: 44 | BD9: 45 | BE9: 46 | BF9: 47 | BG9: 48 | BH9: 49 | BI9: 50 | BJ9: 51 | BK9: 52 | BL9: 53 | BM9: 54 | BN9: 55 | BO9: 56 | BP9: 57 | BQ9: 58 | BR9: 59 | BS9: 60 | BT9: 61 | BU9: 62 | BV9: 63 | BW9: 64 | BX9: 65 | BY9: 66 | BZ9: 67 | CA9: =BZ9+1 -> 68 | CB9: 69 | CC9: 70 | CD9: 71 | CE9: 72 | CF9: 73 | CG9: 74 | CH9: 75 | CI9: 76 | CJ9: 77 | CK9: 78 | CL9: 79 | CM9: 80 | CN9: 81 | CO9: 82 | CP9: 83 | CQ9: 84 | CR9: 85 | CS9: 86 | CT9: 87 | CU9: 88 | CV9: 89 | CW9: 90 | CX9: 91 | CY9: 92 | CZ9: 93 | DA9: 94 | DB9: 95 | DC9: 96 | DD9: 97 | DE9: 98 | DF9: 99 | DG9: 100 | DH9: 101 | DI9: 102 | DJ9: 103 | DK9: 104 | DL9: 105 | DM9: 106 | DN9: 107 | DO9: 108 | DP9: 109 | DQ9: 110 | DR9: 111 | DS9: 112 | DT9: 113 | DU9: 114 | DV9: 115 | DW9: 116 | DX9: 117 | DY9: 118 | DZ9: 119 | EA9: 120 | EB9: 121 | EC9: 122 | ED9: 123 | EE9: 124 | EF9: 125 | EG9: 126 | EH9: 127 | EI9: 128 | EJ9: 129 | EK9: 130 | EL9: 131 | EM9: =EL9+1 -> 132 | EN9: 133 | EO9: 134 | EP9: 135 | EQ9: 136 | ER9: 137 | ES9: 138 | ET9: 139 | EU9: 140 | EV9: 141 | EW9: 142 | EX9: 143 | EY9: 144 | EZ9: 145 | FA9: 146 | FB9: 147 | FC9: 148 | FD9: 149 | FE9: 150 | FF9: 151 | FG9: 152 | FH9: 153 | FI9: 154 | FJ9: 155 | FK9: 156 | FL9: 157 | FM9: 158 | FN9: 159 | FO9: 160 | FP9: 161 | FQ9: 162 | FR9: 163 | FS9: 164 | FT9: 165 | FU9: 166 | FV9: 167 | FW9: 168 | FX9: 169 | FY9: 170 | FZ9: 171 | GA9: 172 | GB9: 173 | GC9: 174 | GD9: 175 | GE9: 176 | GF9: 177 | GG9: 178 | GH9: 179 | GI9: 180 | GJ9: 181 | GK9: 182 | GL9: 183 | GM9: 184 | GN9: 185 | GO9: 186 | GP9: 187 | GQ9: 188 | GR9: 189 | GS9: 190 | GT9: 191 | GU9: 192 | GV9: 193 | GW9: 194 | GX9: 195 | GY9: =GX9+1 -> 196 | GZ9: 197 | HA9: 198 | HB9: 199 | HC9: 200 | HD9: 201 | HE9: 202 | HF9: 203 | HG9: 204 | HH9: 205 | HI9: 206 | HJ9: 207 | HK9: 208 | HL9: 209 | HM9: 210 | HN9: 211 | HO9: 212 | HP9: 213 | HQ9: 214 | HR9: 215 | HS9: 216 | HT9: 217 | HU9: 218 | HV9: 219 | HW9: 220 | HX9: 221 | HY9: 222 | HZ9: 223 | IA9: 224 | IB9: 225 | IC9: 226 | ID9: 227 | IE9: 228 | IF9: 229 | IG9: 230 | IH9: 231 | II9: 232 | IJ9: 233 | IK9: 234 | IL9: 235 | IM9: 236 | IN9: 237 | IO9: 238 | IP9: 239 | IQ9: 240 | IR9: 241 | IS9: 242 | IT9: 243 | IU9: 244 | IV9: 245 | IW9: 246 | IX9: 247 | IY9: 248 | IZ9: 249 | JA9: 250 | JB9: 251 | JC9: 252
D10: 1 | E10: -1.465131772 | F10: 0.1101821187 | G10: -0.1365221772 | H10: -0.01467740081 | I10: 86.82110404 | J10: 0 | L10: 89.30599191 | M10: 88.10480987 | N10: 86.82110404
D11: 2 | E11: 1.687141747 | F11: 0.4032943521 | G11: 0.1787051747 | H11: -0.1429637348 | I11: 16.411505 | J11: 0 | L11: 78.49004711 | M11: 18.93375576 | N11: 16.411505
D12: 3 | E12: 0.9362495879 | F12: -0.9564958723 | G12: 0.4860798624 | H12: -0.4740839637 | I12: 63.70235414 | J12: 0 | L12: 102.5791063 | M12: 102.3404993 | N12: 63.70235414
D13: 4 | E13: 0.4411105621 | F13: -0.0232412566 | G13: 0.3127302911 | H13: -0.01737513771 | I13: 74.27326077 | J13: 0 | L13: 96.69210033 | M13: 75.5750455 | N13: 74.27326077
D14: 5 | E14: -0.136832002 | F14: 1.242370206 | G14: -0.003692200205 | H14: -0.006688201337 | I14: 129.9692726 | J14: 19.9692726 | L14: 153.6346384 | M14: 130.8414466 | N14: 129.9692726
D15: 6 | E15: -0.392685279 | F15: -0.6559790535 | G15: -0.01815291009 | H15: 0.005657427286 | I15: 114.7872822 | J15: 4.787282209 | L15: 105.7323212 | M15: 114.139715 | N15: 114.7872822
D16: 7 | E16: 1.591887865 | F16: -0.8796609994 | G16: 0.1691797865 | H16: -0.183589702 | I16: 93.49875922 | J16: 0 | L16: 120.4774141 | M16: 112.3408853 | N16: 93.49875922
D17: 8 | E17: 0.3642088526 | F17: -0.3083695161 | G17: 0.1038545911 | H17: -0.03225468798 | I17: 109.4900411 | J17: 0 | L17: 119.1735425 | M17: 113.0791803 | N17: 109.4900411
D18: 9 | E18: -0.8480130001 | F18: -0.6868899273 | G18: -0.07481030001 | H18: -0.02484120809 | I18: 146.8674762 | J18: 36.86747615 | L18: 106.4180281 | M18: 150.5615342 | N18: 146.8674762
D19: 10 | E19: -0.6544607622 | F19: -0.6076114129 | G19: -0.1045699941 | H19: 0.05364779393 | I19: 89.75095694 | J19: 0 | L19: 80.74035471 | M19: 85.06289258 | N19: 89.75095694

Sheet Histogram
B2: Settings
B3: Start at | C3: 10
B4: Increment | C4: 10
I6: Price
H7: 1 | I7: =Sheet1!J10 -> 0 | K7: Lower limit | L7: Upper limit | M7: Class | N7: Frequency | O7: Probability
H8: =H7+1 -> 2 | I8: =Sheet1!J11 -> 0 | K8: =C3 -> 10 | L8: =K8+C$4 -> 20 | M8: =K8&" "&L8 -> 10 20 | N8: =COUNTIF($I$7:$I$132,"<"&L8)-COUNTIF($I$7:$I$152,"<"&K8) -> 1 | O8: =N8/Sheet1!$D$3 -> 0.1
H9: =H8+1 -> 3 | I9: =Sheet1!J12 -> 0 | K9: =L8 -> 20 | L9: 30 | M9: 20 30 | N9: 0 | O9: =N9/Sheet1!$D$3 -> 0
H10: 4 | I10: =Sheet1!J13 -> 0 | K10: =L9 -> 30 | L10: 40 | M10: 30 40 | N10: 1 | O10: =N10/Sheet1!$D$3 -> 0.1
H11: 5 | I11: =Sheet1!J14 -> 19.9692726 | K11: 40 | L11: 50 | M11: 40 50 | N11: 0 | O11: =N11/Sheet1!$D$3 -> 0
H12: 6 | I12: =Sheet1!J15 -> 4.787282209 | K12: 50 | L12: 60 | M12: 50 60 | N12: 0 | O12: =N12/Sheet1!$D$3 -> 0
H13: 7 | I13: =Sheet1!J16 -> 0 | K13: 60 | L13: 70 | M13: 60 70 | N13: 0 | O13: =N13/Sheet1!$D$3 -> 0
H14: 8 | I14: =Sheet1!J17 -> 0 | K14: 70 | L14: 80 | M14: 70 80 | N14: 0 | O14: =N14/Sheet1!$D$3 -> 0
H15: 9 | I15: =Sheet1!J18 -> 36.86747615 | K15: 80 | L15: 90 | M15: 80 90 | N15: 0 | O15: =N15/Sheet1!$D$3 -> 0
H16: 10 | I16: =Sheet1!J19 -> 0 | K16: 90 | L16: 100 | M16: 90 100 | N16: 0 | O16: =N16/Sheet1!$D$3 -> 0
H17: 11 | I17: =Sheet1!J20 -> 0 | K17: 100 | L17: 110 | M17: 100 110 | N17: 0 | O17: =N17/Sheet1!$D$3 -> 0
H18: 12 | I18: =Sheet1!J21 -> 0 | K18: 110 | L18: 120 | M18: 110 120 | N18: 0 | O18: =N18/Sheet1!$D$3 -> 0
H19: 13 | I19: =Sheet1!J22 -> 0 | K19: 120 | L19: 130 | M19: 120 130 | N19: 0 | O19: =N19/Sheet1!$D$3 -> 0
H20: 14 | I20: =Sheet1!J23 -> 0 | K20: 130 | L20: 140 | M20: 130 140 | N20: 0 | O20: =N20/Sheet1!$D$3 -> 0
H21: 15 | I21: =Sheet1!J24 -> 0 | K21: 140 | L21: 150 | M21: 140 150 | N21: 0 | O21: =N21/Sheet1!$D$3 -> 0
H22: 16 | I22: =Sheet1!J25 -> 0 | K22: 150 | L22: 160 | M22: 150 160 | N22: 0 | O22: =N22/Sheet1!$D$3 -> 0
H23: 17 | I23: =Sheet1!J26 -> 0 | K23: 160 | L23: 170 | M23: 160 170 | N23: 0 | O23: =N23/Sheet1!$D$3 -> 0
H24: 18 | I24: =Sheet1!J27 -> 0 | K24: 170 | L24: 180 | M24: 170 180 | N24: 0 | O24: =N24/Sheet1!$D$3 -> 0
H25: 19 | I25: =Sheet1!J28 -> 0 | K25: 180 | L25: 190 | M25: 180 190 | N25: 0 | O25: =N25/Sheet1!$D$3 -> 0
H26: 20 | I26: =Sheet1!J29 -> 0 | K26: 190 | L26: 200 | M26: 190 200 | N26: 0 | O26: =N26/Sheet1!$D$3 -> 0
H27: 21 | I27: =Sheet1!J30 -> 0 | K27: 200 | L27: 210 | M27: 200 210 | N27: 0 | O27: =N27/Sheet1!$D$3 -> 0
H28: 22 | I28: =Sheet1!J31 -> 0 | K28: 210 | L28: 220 | M28: 210 220 | N28: 0 | O28: =N28/Sheet1!$D$3 -> 0
H29: 23 | I29: =Sheet1!J32 -> 0 | K29: 220 | L29: 230 | M29: 220 230 | N29: 0 | O29: =N29/Sheet1!$D$3 -> 0
H30: 24 | I30: =Sheet1!J33 -> 0 | K30: 230 | L30: 240 | M30: 230 240 | N30: 0 | O30: =N30/Sheet1!$D$3 -> 0
H31: 25 | I31: =Sheet1!J34 -> 0 | K31: =L30 -> 240 | L31: 250 | M31: 240 250 | N31: 0 | O31: =N31/Sheet1!$D$3 -> 0
H32: 26 | I32: =Sheet1!J35 -> 0 | K32: 250 | L32: 260 | M32: 250 260 | N32: 0 | O32: =N32/Sheet1!$D$3 -> 0
H33: 27 | I33: =Sheet1!J36 -> 0 | K33: 260 | L33: 270 | M33: 260 270 | N33: 0 | O33: =N33/Sheet1!$D$3 -> 0
H34: 28 | I34: =Sheet1!J37 -> 0 | K34: 270 | L34: 280 | M34: 270 280 | N34: 0 | O34: =N34/Sheet1!$D$3 -> 0
H35: 29 | I35: =Sheet1!J38 -> 0 | K35: =L34 -> 280 | L35: 290 | M35: 280 290 | N35: 0 | O35: =N35/Sheet1!$D$3 -> 0
H36: 30 | I36: =Sheet1!J39 -> 0 | K36: 290 | L36: 300 | M36: 290 300 | N36: 0 | O36: =N36/Sheet1!$D$3 -> 0
H37: 31 | I37: =Sheet1!J40 -> 0
H38: 32 | I38: =Sheet1!J41 -> 0
H39: 33 | I39: =Sheet1!J42 -> 0
H40: 34 | I40: =Sheet1!J43 -> 0
H41: 35 | I41: =Sheet1!J44 -> 0
H42: 36 | I42: =Sheet1!J45 -> 0
H43: 37 | I43: =Sheet1!J46 -> 0
H44: 38 | I44: =Sheet1!J47 -> 0
H45: 39 | I45: =Sheet1!J48 -> 0
H46: 40 | I46: =Sheet1!J49 -> 0
H47: 41 | I47: =Sheet1!J50 -> 0
H48: 42 | I48: =Sheet1!J51 -> 0
H49: 43 | I49: =Sheet1!J52 -> 0
H50: 44 | I50: =Sheet1!J53 -> 0
H51: 45 | I51: =Sheet1!J54 -> 0
H52: 46 | I52: =Sheet1!J55 -> 0
H53: 47 | I53: =Sheet1!J56 -> 0
H54: 48 | I54: =Sheet1!J57 -> 0
H55: 49 | I55: =Sheet1!J58 -> 0
H56: 50 | I56: =Sheet1!J59 -> 0
H57: 51 | I57: =Sheet1!J60 -> 0
H58: 52 | I58: =Sheet1!J61 -> 0
H59: 53 | I59: =Sheet1!J62 -> 0
H60: 54 | I60: =Sheet1!J63 -> 0
H61: 55 | I61: =Sheet1!J64 -> 0
H62: 56 | I62: =Sheet1!J65 -> 0
H63: 57 | I63: =Sheet1!J66 -> 0
H64: 58 | I64: =Sheet1!J67 -> 0
H65: 59 | I65: =Sheet1!J68 -> 0
H66: 60 | I66: =Sheet1!J69 -> 0
H67: 61 | I67: =Sheet1!J70 -> 0
H68: 62 | I68: =Sheet1!J71 -> 0
H69: 63 | I69: =Sheet1!J72 -> 0
H70: 64 | I70: =Sheet1!J73 -> 0
H71: 65 | I71: =Sheet1!J74 -> 0
H72: 66 | I72: =Sheet1!J75 -> 0
H73: =H72+1 -> 67 | I73: =Sheet1!J76 -> 0
H74: 68 | I74: =Sheet1!J77 -> 0
H75: 69 | I75: =Sheet1!J78 -> 0
H76: 70 | I76: =Sheet1!J79 -> 0
H77: 71 | I77: =Sheet1!J80 -> 0
H78: 72 | I78: =Sheet1!J81 -> 0
H79: 73 | I79: =Sheet1!J82 -> 0
H80: 74 | I80: =Sheet1!J83 -> 0
H81: 75 | I81: =Sheet1!J84 -> 0
H82: 76 | I82: =Sheet1!J85 -> 0
H83: 77 | I83: =Sheet1!J86 -> 0
H84: 78 | I84: =Sheet1!J87 -> 0
H85: 79 | I85: =Sheet1!J88 -> 0
H86: 80 | I86: =Sheet1!J89 -> 0
H87: 81 | I87: =Sheet1!J90 -> 0
H88: 82 | I88: =Sheet1!J91 -> 0
H89: 83 | I89: =Sheet1!J92 -> 0
H90: 84 | I90: =Sheet1!J93 -> 0
H91: 85 | I91: =Sheet1!J94 -> 0
H92: 86 | I92: =Sheet1!J95 -> 0
H93: 87 | I93: =Sheet1!J96 -> 0
H94: 88 | I94: =Sheet1!J97 -> 0
H95: 89 | I95: =Sheet1!J98 -> 0
H96: 90 | I96: =Sheet1!J99 -> 0
H97: 91 | I97: =Sheet1!J100 -> 0
H98: 92 | I98: =Sheet1!J101 -> 0
H99: 93 | I99: =Sheet1!J102 -> 0
H100: 94 | I100: =Sheet1!J103 -> 0
H101: 95 | I101: =Sheet1!J104 -> 0
H102: 96 | I102: =Sheet1!J105 -> 0
H103: 97 | I103: =Sheet1!J106 -> 0
H104: 98 | I104: =Sheet1!J107 -> 0
H105: 99 | I105: =Sheet1!J108 -> 0
H106: 100 | I106: =Sheet1!J109 -> 0
H107: 101 | I107: =Sheet1!J110 -> 0
H108: 102 | I108: =Sheet1!J111 -> 0
H109: 103 | I109: =Sheet1!J112 -> 0
H110: 104 | I110: =Sheet1!J113 -> 0
H111: 105 | I111: =Sheet1!J114 -> 0
H112: 106 | I112: =Sheet1!J115 -> 0
H113: 107 | I113: =Sheet1!J116 -> 0
H114: 108 | I114: =Sheet1!J117 -> 0
H115: 109 | I115: =Sheet1!J118 -> 0
H116: 110 | I116: =Sheet1!J119 -> 0
H117: 111 | I117: =Sheet1!J120 -> 0
H118: 112 | I118: =Sheet1!J121 -> 0
H119: 113 | I119: =Sheet1!J122 -> 0
H120: 114 | I120: =Sheet1!J123 -> 0
H121: 115 | I121: =Sheet1!J124 -> 0
H122: 116 | I122: =Sheet1!J125 -> 0
H123: 117 | I123: =Sheet1!J126 -> 0
H124: 118 | I124: =Sheet1!J127 -> 0
H125: 119 | I125: =Sheet1!J128 -> 0
H126: 120 | I126: =Sheet1!J129 -> 0
H127: 121 | I127: =Sheet1!J130 -> 0
H128: 122 | I128: =Sheet1!J131 -> 0
H129: 123 | I129: =Sheet1!J132 -> 0
H130: 124 | I130: =Sheet1!J133 -> 0
H131: 125 | I131: =Sheet1!J134 -> 0

Sheet Black and Scholes
B2: Black Scholes Model
B4: stock | C4: 100
B5: strike | C5: 110
B6: volatility | C6: 0.3
B7: Riskless rate | C7: 0.05
B8: Term | C8: 1
B9: Dividend Yield | C9: 0
B11: d1 | C11: =LN(C4/C5)+(C7+C6^2/2)*C8/(C6*SQRT(C8)) -> 0.2213564869
B12: d2 | C12: =SUM(C11-C6*SQRT(C8)) -> -0.07864351314
B13: call | C13: =C4*NORMSDIST(C11)-C5*EXP(-C7*C8)*NORMSDIST(C12) -> 9.721106498
B14: put | C14: =C5*EXP(-C7*C8)*NORMSDIST(-C12)-C4*NORMSDIST(-C11) -> 14.35634319
B17: d1= (Ln(S0/K)+((r-q)+σ2/2)T)/σ √T
B18: d2= d1-σ√T
B19: C=S0N(d1)-Ke-rTN(d2)
